fUSD/lending_fUSD_20241110
["ID","MTS","AMOUNT","RATE_DAILY","PERIOD"]
[341846309,1731252336667,150.0,9e-05,2]
[341846310,1731252336690,150.0,9e-05,2]
[341846311,1731252336713,150.0,9e-05,2]
[341846312,1731252336734,150.0,9e-05,2]
[341846313,1731252336758,150.0,9e-05,2]
[341846314,1731252336781,150.0,9e-05,2]
[341846315,1731252336804,150.0,9e-05,2]
[341846316,1731252336826,150.0,9e-05,2]
[341846317,1731252336847,150.0,9e-05,2]
[341846318,1731252336869,150.0,9e-05,2]
[341846319,1731252336891,150.0,9e-05,2]
[341846320,1731252336913,150.0,9e-05,2]
[341846321,1731252336936,150.0,9e-05,2]
[341846322,1731252336957,150.0,9e-05,2]
[341846323,1731252336978,150.0,9e-05,2]
[341846324,1731252336999,150.0,9e-05,2]
[341846325,1731252337020,150.0,9e-05,2]
[341846326,1731252337042,150.0,9e-05,2]
[341846327,1731252337062,150.0,9e-05,2]
[341846328,1731252337083,150.0,9e-05,2]
[341846329,1731252337104,150.0,9e-05,2]
[341846330,1731252337125,150.0,9e-05,2]
[341846331,1731252337146,150.0,9e-05,2]
[341846332,1731252337168,16607.6177507,9e-05,2]
[341846333,1731252346660,155.657,0.00027,60]
[341846334,1731252355101,150.0,6.94e-05,2]
[341846335,1731252355124,150.0,6.94e-05,2]
[341846336,1731252355146,150.0,6.94e-05,2]
[341846337,1731252355168,150.0,6.94e-05,2]
[341846338,1731252355191,150.0,6.94e-05,2]
[341846339,1731252355215,150.0,6.94e-05,2]
[341846340,1731252355237,150.0,6.94e-05,2]
[341846341,1731252355259,150.0,6.94e-05,2]
[341846342,1731252355282,150.0,6.94e-05,2]
[341846343,1731252355305,150.0,6.94e-05,2]
[341846344,1731252355326,150.0,6.94e-05,2]
[341846345,1731252355347,155.11290858,6.94e-05,2]
[341846346,1731252401526,150.0,0.00012505,5]
[341846347,1731252412177,-158.14,0.00012446,2]
[341846348,1731252412199,-611.92993034,0.00012456,2]
[341846349,1731252425111,-632.40006966,0.00012456,2]
[341846350,1731252425135,-158.14,0.00012459,2]
[341846351,1731252425159,-158.14,0.00012471,2]
[341846352,1731252425183,-158.14,0.00012483,2]
[341846353,1731252425208,-158.14,0.00012496,2]
[341846354,1731252425231,-158.14,0.00012508,2]
[341846355,1731252425262,-158.14,0.00012521,2]
[341846356,1731252425287,-158.14,0.00012533,2]
[341846357,1731252425309,-376.93,0.00012541,2]
[341846358,1731252425333,-158.14,0.00012546,2]
[341846359,1731252425356,-240.52,0.00012547,2]
[341846360,1731252425381,-158.14,0.00012558,2]
[341846361,1731252425403,-863.18,0.00012567,2]
[341846362,1731252425430,-911.92,0.00012567,2]
[341846363,1731252425454,-158.14,0.00012571,2]
[341846364,1731252425477,-250.0,0.00012615,2]
[341846365,1731252425505,-163.76,0.0001266,2]
[341846366,1731252425527,-300.0,0.00012714,2]
[341846367,1731252425548,-150.0,0.00012714,2]
[341846368,1731252425572,-1150.79639927,0.00012715,2]
[341846369,1731252438115,-5332.21093269,0.00012715,2]
[341846370,1731252444278,-5039.87316031,0.00012715,2]
[341846371,1731252445594,150.0,0.000101,2]
[341846372,1731252445618,97.13170641,0.000101,2]
[341846375,1731252523503,900.0,0.0001,2]
[341846377,1731252527164,255.14049122,0.000107,2]
[341846378,1731252561964,1983.57,0.0001065,2]
[341846394,1731252603326,150.0,0.0001065,2]
[341846400,1731252632385,-431.59,0.00012494,2]
[341846401,1731252632397,-250.0,0.00012494,2]
[341846402,1731252632407,-167.34,0.00012521,2]
[341846403,1731252632417,-402.33,0.00012528,2]
[341846404,1731252632426,-1000.0,0.00012557,2]
[341846405,1731252632436,-250.0,0.00012567,2]
[341846406,1731252632446,-300.0,0.00012714,2]
[341846407,1731252632457,-12377.11950773,0.00012715,2]
[341846408,1731252632467,-5000.0,0.000128,2]
[341846409,1731252632480,-1983.57,0.00012913,2]
[341846410,1731252632489,-150.0,0.00012917,2]
[341846411,1731252632499,-42351.0,0.00012918,2]
[341846412,1731252632508,-400.0,0.000131,4]
[341846413,1731252632518,-559.87,0.000131,2]
[341846414,1731252632528,-1078.75,0.00013144,2]
[341846415,1731252632538,-240.52,0.00013144,2]
[341846416,1731252632550,-800.0,0.000132,4]
[341846417,1731252632561,-6483.3622,0.00013215,2]
[341846418,1731252632570,-484.2422,0.00013215,2]
[341846419,1731252632580,-892.47628881,0.00013279,2]
[341846420,1731252632590,-8941.4017,0.0001328,2]
[341846421,1731252632601,-30284.1504,0.0001328,2]
[341846422,1731252632610,-1705.13281938,0.000133,2]
[341846423,1731252632621,-1300.0,0.000133,4]
[341846424,1731252632634,-1705.13281934,0.00013333,2]
[341846425,1731252632645,-1705.13281934,0.00013366,2]
[341846426,1731252632655,-69724.003,0.0001338,2]
[341846427,1731252632663,-631.0,0.00013393,2]
[341846428,1731252632673,-1254.0,0.00013393,2]
[341846429,1731252632682,-1705.13281934,0.00013399,2]
[341846430,1731252632691,-150.0,0.000134,2]
[341846431,1731252632701,-432.81,0.000134,2]
[341846432,1731252632710,-1700.0,0.000134,4]
[341846433,1731252632720,-150.0,0.00013427,2]
[341846434,1731252632729,-150.0,0.00013429,2]
[341846436,1731252632738,-150.0,0.00013429,2]
[341846438,1731252632748,-1705.13281934,0.00013432,2]
[341846440,1731252632757,-150.0,0.00013436,2]
[341846442,1731252632767,-150.0,0.00013438,2]
[341846443,1731252632776,-150.0,0.00013443,2]
[341846444,1731252632786,-150.0,0.00013444,2]
[341846445,1731252632795,-150.0,0.00013444,2]
[341846446,1731252632804,-150.0,0.00013447,2]
[341846447,1731252632814,-150.0,0.00013451,2]
[341846448,1731252632823,-800.0,0.00013453,2]
[341846449,1731252632833,-150.0,0.00013454,2]
[341846450,1731252632842,-150.0,0.00013458,2]
[341846451,1731252632854,-150.0,0.00013459,2]
[341846452,1731252633130,-150.0,0.00013461,2]
[341846453,1731252633144,-1705.13281934,0.00013466,2]
[341846454,1731252633154,-150.0,0.00013467,2]
[341846455,1731252633164,-150.0,0.00013468,2]
[341846456,1731252633174,-426.22825879,0.00013468,2]
[341846457,1731252633183,-150.0,0.00013473,2]
[341846458,1731252633193,-150.0,0.00013481,2]
[341846459,1731252633203,-150.0,0.00013481,2]
[341846460,1731252633212,-150.0,0.00013487,2]
[341846461,1731252633221,-150.0,0.00013492,2]
[341846462,1731252633231,-150.0,0.00013493,2]
[341846463,1731252633240,-150.0,0.00013494,2]
[341846464,1731252633249,-150.0,0.00013498,2]
[341846465,1731252633259,-150.0,0.00013498,2]
[341846466,1731252633269,-1705.13281934,0.00013499,2]
[341846467,1731252633279,-150.0,0.00013499,2]
[341846468,1731252633288,-150.0,0.000135,2]
[341846469,1731252633298,-2100.0,0.000135,4]
[341846470,1731252633308,-150.0,0.00013509,2]
[341846471,1731252633318,-150.0,0.0001351,2]
[341846472,1731252633328,-150.0,0.00013518,2]
[341846473,1731252633337,-150.0,0.00013521,2]
[341846474,1731252633347,-150.0,0.00013528,2]
[341846475,1731252633358,-150.0,0.00013531,2]
[341846476,1731252633367,-1705.13281934,0.00013532,2]
[341846477,1731252633377,-150.0,0.00013535,2]
[341846478,1731252633389,-150.0,0.00013537,2]
[341846479,1731252633399,-150.0,0.00013539,2]
[341846480,1731252633408,-150.0,0.00013544,2]
[341846481,1731252633418,-150.0,0.00013545,2]
[341846482,1731252633428,-150.0,0.00013552,2]
[341846483,1731252633437,-150.0,0.00013553,2]
[341846484,1731252633447,-150.0,0.00013555,2]
[341846485,1731252633456,-150.0,0.00013555,2]
[341846486,1731252633466,-150.0,0.00013555,2]
[341846487,1731252633480,-150.0,0.00013556,2]
[341846488,1731252633489,-150.0,0.0001356,2]
[341846489,1731252633499,-150.0,0.0001356,2]
[341846490,1731252633509,-150.0,0.00013563,2]
[341846491,1731252633520,-1705.13281934,0.00013565,2]
[341846492,1731252633529,-150.0,0.0001357,2]
[341846493,1731252633539,-557.77226452,0.00013572,2]
[341846494,1731252633549,-557.77226452,0.00013572,2]
[341846495,1731252633560,-557.77226452,0.00013577,2]
[341846496,1731252633570,-150.0,0.00013579,2]
[341846497,1731252633580,-150.0,0.00013581,2]
[341846498,1731252633589,-150.0,0.00013583,2]
[341846499,1731252633598,-150.0,0.00013584,2]
[341846500,1731252633607,-200.0,0.00013588,2]
[341846501,1731252633617,-557.77226452,0.00013588,2]
[341846502,1731252633626,-150.0,0.00013589,2]
[341846503,1731252633636,-150.0,0.0001359,2]
[341846504,1731252633648,-557.77226452,0.00013593,2]
[341846505,1731252633657,-150.0,0.00013596,2]
[341846506,1731252633667,-3500.0,0.00013598,2]
[341846507,1731252633676,-837.774,0.00013598,2]
[341846508,1731252633686,-172.25,0.00013598,2]
[341846509,1731252633696,-1705.13281934,0.00013598,2]
[341846510,1731252633705,-849.2600463,0.00013598,2]
[341846511,1731252633715,-5468.7209,0.00013598,2]
[341846512,1731252633724,-2200.4365,0.00013598,2]
[341846513,1731252633734,-557.77226452,0.00013598,2]
[341846514,1731252633743,-400.0,0.000136,4]
[341846515,1731252633753,-150.0,0.00013602,2]
[341846516,1731252633763,-150.0,0.00013602,2]
[341846517,1731252633772,-150.0,0.00013608,2]
[341846518,1731252633782,-150.0,0.00013609,2]
[341846519,1731252633791,-150.0,0.0001361,2]
[341846520,1731252633801,-150.0,0.00013611,2]
[341846521,1731252633811,-150.0,0.00013612,2]
[341846522,1731252633820,-150.0,0.00013612,2]
[341846523,1731252633830,-150.0,0.00013615,2]
[341846524,1731252633841,-150.0,0.00013618,2]
[341846525,1731252633851,-150.0,0.0001362,2]
[341846526,1731252633861,-150.0,0.00013624,2]
[341846527,1731252633870,-150.0,0.00013624,2]
[341846528,1731252633880,-150.0,0.00013629,2]
[341846529,1731252633894,-150.0,0.00013632,2]
[341846530,1731252633904,-150.0,0.00013633,2]
[341846531,1731252633914,-150.0,0.00013633,2]
[341846532,1731252633925,-150.0,0.00013635,2]
[341846533,1731252633935,-150.0,0.00013636,2]
[341846534,1731252633944,-150.0,0.00013637,2]
[341846535,1731252633954,-150.0,0.00013642,2]
[341846536,1731252633964,-150.0,0.00013642,2]
[341846537,1731252633974,-150.0,0.00013644,2]
[341846538,1731252633983,-150.0,0.00013645,2]
[341846539,1731252633993,-150.0,0.00013649,2]
[341846540,1731252634003,-150.0,0.00013651,2]
[341846541,1731252634013,-150.0,0.00013654,2]
[341846542,1731252634024,-150.0,0.00013665,2]
[341846543,1731252634034,-150.0,0.00013667,2]
[341846544,1731252634044,-150.0,0.00013667,2]
[341846545,1731252634054,-150.0,0.00013667,2]
[341846546,1731252634064,-150.0,0.00013668,2]
[341846547,1731252634073,-150.0,0.00013672,2]
[341846548,1731252634083,-500.0,0.00013673,2]
[341846549,1731252634093,-500.0,0.00013673,2]
[341846550,1731252634103,-150.0,0.00013676,2]
[341846551,1731252634113,-150.0,0.00013679,2]
[341846552,1731252634124,-150.0,0.00013679,2]
[341846553,1731252634134,-150.0,0.00013679,2]
[341846554,1731252634148,-150.0,0.00013682,2]
[341846555,1731252634158,-230.82,0.00013683,2]
[341846556,1731252634168,-150.0,0.00013685,2]
[341846557,1731252634177,-1701.8833944,0.00013685,2]
[341846558,1731252634186,-8137.2000434,0.00013685,2]
[341846559,1731252634196,-9875.11282222,0.0001369,2]
[341846560,1731252634207,-150.0,0.00013691,2]
[341846561,1731252634217,-150.0,0.00013694,2]
[341846562,1731252634227,-150.0,0.00013695,2]
[341846563,1731252634237,-150.0,0.00013695,2]
[341846564,1731252634246,-1119.0,0.00013696,2]
[341846565,1731252634255,-1000.0,0.00013697,2]
[341846566,1731252634265,-151.0,0.00013698,2]
[341846567,1731252634274,-154.236574,0.00013698,2]
[341846568,1731252634284,-151.0,0.00013698,2]
[341846569,1731252634294,-151.0,0.00013698,2]
[341846570,1731252634302,-165.539799,0.00013698,2]
[341846571,1731252634312,-200.0,0.00013698,2]
[341846572,1731252634321,-200.0,0.00013698,2]
[341846573,1731252634330,-151.0,0.00013698,2]
[341846574,1731252634340,-151.0,0.00013698,2]
[341846575,1731252634350,-151.0,0.00013698,2]
[341846576,1731252634360,-151.0,0.00013698,2]
[341846577,1731252634370,-245.177674,0.00013698,2]
[341846578,1731252634379,-151.0,0.00013698,2]
[341846579,1731252634394,-151.0,0.00013698,2]
[341846580,1731252634404,-151.0,0.00013698,2]
[341846581,1731252634415,-156.562276,0.00013698,2]
[341846582,1731252634425,-152.944725,0.00013698,2]
[341846583,1731252634434,-151.0,0.00013698,2]
[341846584,1731252634444,-151.0,0.00013698,2]
[341846585,1731252634454,-151.0,0.00013698,2]
[341846586,1731252634463,-152.861318,0.00013698,2]
[341846587,1731252634475,-500.0,0.00013698,2]
[341846588,1731252634486,-500.0,0.00013698,2]
[341846589,1731252634495,-500.0,0.00013698,2]
[341846590,1731252634506,-500.0,0.00013698,2]
[341846591,1731252634515,-500.0,0.00013698,2]
[341846592,1731252634526,-500.0,0.00013698,2]
[341846593,1731252634536,-500.0,0.00013698,2]
[341846594,1731252634545,-500.0,0.00013698,2]
[341846595,1731252634557,-500.0,0.00013698,2]
[341846596,1731252634566,-500.0,0.00013698,2]
[341846597,1731252634575,-500.0,0.00013698,2]
[341846598,1731252634584,-500.0,0.00013698,2]
[341846599,1731252634594,-500.0,0.00013698,2]
[341846600,1731252634604,-500.0,0.00013698,2]
[341846601,1731252634613,-500.0,0.00013698,2]
[341846602,1731252634622,-500.0,0.00013698,2]
[341846603,1731252634632,-500.0,0.00013698,2]
[341846604,1731252634643,-500.0,0.00013698,2]
[341846605,1731252634652,-500.0,0.00013698,2]
[341846606,1731252634662,-503.89654943,0.00013698,2]
[341846607,1731252634671,-500.0,0.00013698,2]
[341846608,1731252634680,-616.45362042,0.00013698,2]
[341846609,1731252634690,-175.05777588,0.00013698,2]
[341846610,1731252634699,-500.0,0.00013698,2]
[341846611,1731252634709,-500.0,0.00013698,2]
[341846612,1731252634718,-500.0,0.00013698,2]
[341846613,1731252634727,-500.0,0.00013698,2]
[341846614,1731252634737,-2072.6,0.00013698,2]
[341846615,1731252634746,-500.0,0.00013698,2]
[341846616,1731252634757,-2072.6,0.00013698,2]
[341846617,1731252634767,-500.0,0.00013698,2]
[341846618,1731252634776,-500.0,0.00013698,2]
[341846619,1731252634786,-2072.6,0.00013698,2]
[341846620,1731252634796,-500.0,0.00013698,2]
[341846621,1731252634805,-2072.6,0.00013698,2]
[341846622,1731252634815,-2072.6,0.00013698,2]
[341846623,1731252634824,-2072.6,0.00013698,2]
[341846624,1731252634833,-500.0,0.00013698,2]
[341846625,1731252634843,-2072.6,0.00013698,2]
[341846626,1731252634852,-500.0,0.00013698,2]
[341846627,1731252634862,-2072.6,0.00013698,2]
[341846628,1731252634872,-500.0,0.00013698,2]
[341846629,1731252634881,-2072.6,0.00013698,2]
[341846630,1731252634893,-512.17085301,0.00013698,2]
[341846631,1731252634902,-2072.6,0.00013698,2]
[341846632,1731252634912,-2072.6,0.00013698,2]
[341846633,1731252634921,-2072.6,0.00013698,2]
[341846634,1731252634931,-2072.6,0.00013698,2]
[341846635,1731252634940,-2072.6,0.00013698,2]
[341846636,1731252634950,-2072.6,0.00013698,2]
[341846637,1731252634960,-2072.6,0.00013698,2]
[341846638,1731252634969,-2072.6,0.00013698,2]
[341846639,1731252634978,-500.0,0.00013698,2]
[341846640,1731252634988,-2072.6,0.00013698,2]
[341846641,1731252634998,-500.0,0.00013698,2]
[341846642,1731252635008,-150.0,0.00013698,2]
[341846643,1731252635017,-2072.6,0.00013698,2]
[341846644,1731252635027,-500.0,0.00013698,2]
[341846645,1731252635036,-500.0,0.00013698,2]
[341846646,1731252635046,-2072.6,0.00013698,2]
[341846647,1731252635055,-500.0,0.00013698,2]
[341846648,1731252635064,-2072.6,0.00013698,2]
[341846649,1731252635074,-500.0,0.00013698,2]
[341846650,1731252635083,-578.59,0.00013698,2]
[341846651,1731252635093,-2072.6,0.00013698,2]
[341846652,1731252635102,-500.0,0.00013698,2]
[341846653,1731252635112,-578.59,0.00013698,2]
[341846654,1731252635121,-2072.6,0.00013698,2]
[341846655,1731252635130,-500.0,0.00013698,2]
[341846656,1731252635142,-578.59,0.00013698,2]
[341846657,1731252635152,-2072.60873831,0.00013698,2]
[341846658,1731252635164,-578.59,0.00013698,2]
[341846659,1731252635173,-500.0,0.00013698,2]
[341846660,1731252635183,-578.59,0.00013698,2]
[341846661,1731252635192,-500.0,0.00013698,2]
[341846662,1731252635202,-578.59,0.00013698,2]
[341846663,1731252635211,-500.0,0.00013698,2]
[341846664,1731252635220,-151.0,0.00013698,2]
[341846665,1731252635230,-578.59,0.00013698,2]
[341846666,1731252635239,-500.0,0.00013698,2]
[341846667,1731252635249,-151.0,0.00013698,2]
[341846668,1731252635259,-578.59,0.00013698,2]
[341846669,1731252635268,-500.0,0.00013698,2]
[341846670,1731252635277,-171.601061,0.00013698,2]
[341846671,1731252635287,-578.59,0.00013698,2]
[341846672,1731252635297,-500.0,0.00013698,2]
[341846673,1731252635307,-578.59,0.00013698,2]
[341846674,1731252635316,-457.69578648,0.00013698,2]
[341846675,1731252635326,-578.59,0.00013698,2]
[341846676,1731252635335,-578.59,0.00013698,2]
[341846677,1731252635345,-578.59,0.00013698,2]
[341846678,1731252635354,-578.59,0.00013698,2]
[341846679,1731252635363,-559.0,0.00013698,2]
[341846680,1731252635373,-578.59,0.00013698,2]
[341846681,1731252635382,-578.59,0.00013698,2]
[341846682,1731252635393,-578.59,0.00013698,2]
[341846683,1731252635403,-578.59,0.00013698,2]
[341846684,1731252635411,-578.59,0.00013698,2]
[341846685,1731252635421,-578.59,0.00013698,2]
[341846686,1731252635430,-500.0,0.00013698,2]
[341846687,1731252635439,-578.59,0.00013698,2]
[341846688,1731252635449,-500.0,0.00013698,2]
[341846689,1731252635459,-578.59,0.00013698,2]
[341846690,1731252635468,-500.0,0.00013698,2]
[341846691,1731252635480,-578.59,0.00013698,2]
[341846692,1731252635490,-500.0,0.00013698,2]
[341846693,1731252635499,-578.76461371,0.00013698,2]
[341846694,1731252635509,-456.67960187,0.00013698,2]
[341846695,1731252635519,-500.0,0.00013698,2]
[341846696,1731252635528,-500.0,0.00013698,2]
[341846697,1731252635538,-500.0,0.00013698,2]
[341846698,1731252635547,-500.0,0.00013698,2]
[341846699,1731252635560,-500.0,0.00013698,2]
[341846700,1731252635569,-1990.0,0.00013698,2]
[341846701,1731252635578,-500.0,0.00013698,2]
[341846702,1731252635588,-500.0,0.00013698,2]
[341846703,1731252635597,-500.0,0.00013698,2]
[341846704,1731252635606,-500.0,0.00013698,2]
[341846705,1731252635615,-500.0,0.00013698,2]
[341846706,1731252635625,-500.0,0.00013698,2]
[341846707,1731252635635,-500.0,0.00013698,2]
[341846708,1731252635649,-500.0,0.00013698,2]
[341846709,1731252635658,-500.0,0.00013698,2]
[341846710,1731252635667,-500.0,0.00013698,2]
[341846711,1731252635676,-253.97013692,0.00013698,2]
[341846712,1731252635686,-500.0,0.00013698,2]
[341846713,1731252635695,-500.0,0.00013698,2]
[341846714,1731252635704,-500.0,0.00013698,2]
[341846715,1731252635714,-500.0,0.00013698,2]
[341846716,1731252635723,-500.0,0.00013698,2]
[341846717,1731252635732,-500.0,0.00013698,2]
[341846718,1731252635741,-500.0,0.00013698,2]
[341846719,1731252635750,-500.0,0.00013698,2]
[341846720,1731252635760,-500.0,0.00013698,2]
[341846721,1731252635769,-500.0,0.00013698,2]
[341846722,1731252635778,-500.0,0.00013698,2]
[341846723,1731252635787,-500.0,0.00013698,2]
[341846724,1731252635796,-500.0,0.00013698,2]
[341846725,1731252635806,-500.0,0.00013698,2]
[341846726,1731252635815,-500.0,0.00013698,2]
[341846727,1731252635825,-500.0,0.00013698,2]
[341846728,1731252635835,-500.0,0.00013698,2]
[341846729,1731252635844,-500.0,0.00013698,2]
[341846730,1731252635853,-507.95386889,0.00013698,2]
[341846731,1731252635863,-500.0,0.00013698,2]
[341846732,1731252635872,-500.0,0.00013698,2]
[341846733,1731252635883,-1566.88,0.00013698,2]
[341846734,1731252635894,-1566.88,0.00013698,2]
[341846735,1731252635904,-1566.88,0.00013698,2]
[341846736,1731252635913,-500.0,0.00013698,2]
[341846737,1731252635923,-1566.88,0.00013698,2]
[341846738,1731252635933,-500.0,0.00013698,2]
[341846739,1731252635944,-1566.88,0.00013698,2]
[341846740,1731252635954,-236.43566346,0.00013698,2]
[341846741,1731252635964,-1566.88,0.00013698,2]
[341846742,1731252635974,-500.0,0.00013698,2]
[341846743,1731252635984,-1566.88,0.00013698,2]
[341846744,1731252635994,-500.0,0.00013698,2]
[341846745,1731252636003,-1566.88,0.00013698,2]
[341846746,1731252636013,-500.0,0.00013698,2]
[341846747,1731252636028,-1566.88,0.00013698,2]
[341846748,1731252636040,-500.0,0.00013698,2]
[341846749,1731252636050,-1566.88,0.00013698,2]
[341846750,1731252636060,-500.0,0.00013698,2]
[341846751,1731252636070,-1566.88,0.00013698,2]
[341846752,1731252636079,-500.0,0.00013698,2]
[341846753,1731252636088,-1566.88,0.00013698,2]
[341846754,1731252636098,-500.0,0.00013698,2]
[341846755,1731252636108,-1566.88,0.00013698,2]
[341846756,1731252636120,-500.0,0.00013698,2]
[341846757,1731252636129,-1566.88,0.00013698,2]
[341846758,1731252636140,-500.0,0.00013698,2]
[341846759,1731252636151,-1566.88,0.00013698,2]
[341846760,1731252636160,-500.0,0.00013698,2]
[341846761,1731252636169,-1566.88,0.00013698,2]
[341846762,1731252636179,-500.0,0.00013698,2]
[341846763,1731252636188,-1566.88,0.00013698,2]
[341846764,1731252636198,-500.0,0.00013698,2]
[341846765,1731252636207,-1566.88,0.00013698,2]
[341846766,1731252636216,-1566.88,0.00013698,2]
[341846767,1731252636225,-500.0,0.00013698,2]
[341846768,1731252636234,-500.0,0.00013698,2]
[341846769,1731252636244,-1566.88,0.00013698,2]
[341846770,1731252636253,-500.0,0.00013698,2]
[341846771,1731252636262,-229.11261822,0.00013698,2]
[341846772,1731252636271,-1566.88,0.00013698,2]
[341846773,1731252636281,-1566.88,0.00013698,2]
[341846774,1731252636290,-1566.88,0.00013698,2]
[341846775,1731252636300,-1567.09620812,0.00013698,2]
[341846776,1731252636309,-500.0,0.00013698,2]
[341846777,1731252636319,-500.0,0.00013698,2]
[341846778,1731252636328,-500.0,0.00013698,2]
[341846779,1731252636338,-500.0,0.00013698,2]
[341846780,1731252636347,-500.0,0.00013698,2]
[341846781,1731252636356,-387.90781267,0.00013698,2]
[341846782,1731252636366,-200.10217073,0.00013698,2]
[341846783,1731252636375,-500.0,0.00013698,2]
[341846784,1731252636384,-1922.0,0.00013698,2]
[341846785,1731252636395,-500.0,0.00013698,2]
[341846786,1731252636404,-500.0,0.00013698,2]
[341846787,1731252636414,-500.0,0.00013698,2]
[341846788,1731252636423,-151.0,0.00013698,2]
[341846789,1731252636433,-500.0,0.00013698,2]
[341846790,1731252636443,-187.97566177,0.00013698,2]
[341846791,1731252636452,-151.0,0.00013698,2]
[341846792,1731252636461,-151.0,0.00013698,2]
[341846793,1731252636470,-151.0,0.00013698,2]
[341846794,1731252636484,-151.0,0.00013698,2]
[341846795,1731252636493,-151.0,0.00013698,2]
[341846796,1731252636502,-500.0,0.00013698,2]
[341846797,1731252636511,-500.0,0.00013698,2]
[341846798,1731252636521,-500.0,0.00013698,2]
[341846799,1731252636530,-500.0,0.00013698,2]
[341846800,1731252636539,-500.0,0.00013698,2]
[341846801,1731252636550,-591.68417784,0.00013698,2]
[341846802,1731252636559,-500.0,0.00013698,2]
[341846803,1731252636569,-500.0,0.00013698,2]
[341846804,1731252636577,-500.0,0.00013698,2]
[341846805,1731252636586,-500.0,0.00013698,2]
[341846806,1731252636595,-500.0,0.00013698,2]
[341846807,1731252636604,-157.94347126,0.00013698,2]
[341846808,1731252636614,-500.0,0.00013698,2]
[341846809,1731252636623,-500.0,0.00013698,2]
[341846810,1731252636632,-500.0,0.00013698,2]
[341846811,1731252636644,-500.0,0.00013698,2]
[341846812,1731252636653,-500.0,0.00013698,2]
[341846813,1731252636663,-500.0,0.00013698,2]
[341846814,1731252636672,-500.0,0.00013698,2]
[341846815,1731252636681,-500.0,0.00013698,2]
[341846816,1731252636691,-500.0,0.00013698,2]
[341846817,1731252636700,-613.32231756,0.00013698,2]
[341846818,1731252636709,-500.0,0.00013698,2]
[341846819,1731252636719,-500.0,0.00013698,2]
[341846820,1731252636728,-500.0,0.00013698,2]
[341846821,1731252636737,-500.0,0.00013698,2]
[341846822,1731252636747,-500.0,0.00013698,2]
[341846823,1731252636755,-500.0,0.00013698,2]
[341846824,1731252636765,-500.0,0.00013698,2]
[341846825,1731252636774,-500.0,0.00013698,2]
[341846826,1731252636783,-500.0,0.00013698,2]
[341846827,1731252636792,-511.35662559,0.00013698,2]
[341846828,1731252636800,-500.0,0.00013698,2]
[341846829,1731252636809,-500.0,0.00013698,2]
[341846830,1731252636819,-500.0,0.00013698,2]
[341846831,1731252636828,-500.0,0.00013698,2]
[341846832,1731252636837,-500.0,0.00013698,2]
[341846833,1731252636847,-500.0,0.00013698,2]
[341846834,1731252636856,-500.0,0.00013698,2]
[341846835,1731252636865,-500.0,0.00013698,2]